bitfinex-derivatives/quotes_ETHF0:USTF0_20250326
["timestamp","ask_amount","ask_price","bid_price","bid_amount"]
[1743004862850,1.2934,2011.7,2011.6,0.0074625]
[1743004867055,3.2078,2011.8,2011.6,0.0074625]
[1743004867256,1.4081625,2011.9,2011.6,0.0074625]
[1743004867858,0.0074625,2011.9,2011.6,0.0074625]
[1743004868763,0.0074625,2011.9,2011.6,3.2152625]
[1743004868964,0.0074625,2011.9,2011.7,2.7525]
[1743004873561,3.0076,2012.3,2011.7,2.7525]
[1743004873868,3.0076,2012.3,2011.9,3.2078]
[1743004874164,3.0076,2012.3,2012.0,1.3472]
[1743004874567,3.0076,2012.3,2012.1,0.7039]
[1743004874868,3.0076,2012.3,2012.2,4.555]
[1743004875384,3.0076,2012.3,2012.2,1.3472]
[1743004875670,1.0199,2012.3,2012.2,1.3472]
[1743004876767,1.0199,2012.3,2012.2,5.2527]
[1743004877068,0.0074625,2012.4,2012.2,5.2527]
[1743004877263,0.0074625,2012.4,2012.2,2.0449]
[1743004877460,0.0074625,2012.4,2012.2,1.3472]
[1743004877665,1.3230625,2012.4,2012.2,1.3472]
[1743004879767,1.9864625,2012.4,2011.4,3.2078]
[1743004879975,3.2078,2012.2,2011.9,1.3942]
[1743004880273,1.4145,2012.1,2011.5,4.1262]
[1743004880472,1.4145,2012.1,2011.6,1.4016625]
[1743004880672,0.7129,2012.0,2011.6,1.4016625]
[1743004880975,3.2078,2011.8,2011.6,0.0074625]
[1743004881169,2.1157,2011.7,2011.6,0.0074625]
[1743004882272,0.7129,2012.0,2011.6,0.0074625]
[1743004882573,3.2078,2012.1,2011.6,0.0074625]
[1743004882773,3.2078,2012.1,2011.6,0.6894625]
[1743004882964,3.2078,2012.1,2011.7,4.5264]
[1743004883165,3.2078,2012.1,2011.8,1.3186]
[1743004883573,1.3998,2012.0,2011.8,1.3186]
[1743004884972,3.2078,2012.1,2011.8,1.3186]
[1743004886677,1.4053,2012.2,2011.8,1.3186]
[1743004887277,3.2152625,2012.4,2011.9,3.48]
[1743004887477,1.4274,2012.3,2012.0,1.3178]
[1743004887976,3.2078,2012.1,2011.7,3.8891]
[1743004888167,3.2078,2012.1,2011.8,1.3178]
[1743004888168,1.4274,2012.0,2011.8,1.3178]
[1743004889173,1.4274,2012.0,2011.7,1.3178]
[1743004890573,1.4274,2012.0,2011.6,0.0074625]
[1743004892180,3.2078,2011.8,2011.6,0.0074625]
[1743004892477,1.3429,2011.7,2011.6,0.0074625]
[1743004893078,3.2078,2012.1,2011.6,0.0074625]
[1743004893278,4.5498,2012.1,2011.6,0.0074625]
[1743004893768,1.342,2012.0,2011.6,0.0074625]
[1743004894378,1.7882,2012.0,2011.6,0.0074625]
[1743004894773,1.342,2011.9,2011.6,0.0074625]
[1743004895982,3.2078,2011.8,2011.6,0.0074625]
[1743004896280,2.0437,2011.7,2011.6,0.0074625]
[1743004896473,2.7579,2011.7,2011.6,0.0074625]
[1743004897382,5.2579,2011.7,2010.8,3.2078]
[1743004897578,5.2579,2011.7,2009.3,663.78464447]
[1743004897579,3.2078,2011.1,2010.9,1.3141]
[1743004897889,1.3442,2011.0,2010.6,1.3674]
[1743004898181,2.7451,2011.0,2010.7,1.3141]
[1743004899378,3.2078,2010.8,2010.6,0.0074625]
[1743004899578,1.3305,2010.7,2010.6,0.0074625]
[1743004899981,4.8405,2010.7,2010.6,0.0074625]
[1743004902079,1.3305,2010.7,2010.6,0.0074625]
[1743004902275,3.2078,2010.8,2010.6,0.0074625]
[1743004902471,4.575,2010.8,2010.6,0.0074625]
[1743004902684,3.2078,2010.8,2010.6,0.0074625]
[1743004903285,4.575,2010.8,2010.6,0.0074625]
[1743004905280,1.3672,2010.7,2010.6,0.0074625]
[1743004905482,7.2412,2010.7,2010.6,0.0074625]
[1743004905793,1.3672,2010.7,2010.6,0.0074625]
[1743004907683,3.2078,2010.8,2010.6,0.0074625]
[1743004907889,2.2646,2010.9,2010.6,6.7132625]
[1743004908088,1.8282,2010.8,2010.7,1.4103]
[1743004908390,3.2078,2011.5,2010.7,11.0103]
[1743004908586,4.5593,2011.5,2010.9,3.2078]
[1743004908780,4.5593,2011.5,2011.0,3.499]
[1743004908982,4.5593,2011.5,2011.1,1.418]
[1743004909178,1.3515,2011.4,2011.1,1.418]
[1743004909386,3.2078,2011.2,2011.1,1.418]
[1743004910288,1.3515,2011.3,2011.1,1.418]
[1743004911392,5.874,2011.2,2011.1,1.418]
[1743004912694,9.0818,2011.2,2010.6,3.2152625]
[1743004912896,1.3635,2011.1,2010.7,1.3091]
[1743004914090,3.2078,2010.8,2010.7,1.3091]
[1743004914289,9.0818,2010.8,2010.7,1.3091]
[1743004914484,9.0818,2010.8,2010.6,0.0074625]
[1743004914687,2.1232,2010.7,2010.6,0.0074625]
[1743004914892,7.9972,2010.7,2010.6,0.0074625]
[1743004915198,7.9972,2010.7,2010.0,53.3478]
[1743004915381,3.2078,2010.5,2010.1,1.3764]
[1743004915587,1.4109,2010.4,2010.1,1.3764]
[1743004917696,0.4467,2010.3,2010.1,1.3764]
[1743004919589,6.3207,2010.3,2010.0,3.2152625]
[1743004919895,1.3559,2010.2,2010.1,1.3216]
[1743004920096,7.3299,2010.2,2010.1,1.3216]
[1743004920694,5.974,2010.2,2010.1,1.3216]
[1743004922187,7.3818,2010.2,2010.1,1.3216]
[1743004922904,5.974,2010.2,2010.1,1.3216]
[1743004923594,4.79842803,2010.2,2010.1,3.8216]
[1743004923901,4.79842803,2010.2,2010.1,1.3216]
[1743004924898,6.18442803,2010.2,2010.1,1.3216]
[1743004925402,6.88812803,2010.2,2010.1,1.3216]
[1743004926499,4.79842803,2010.2,2010.1,1.3216]
[1743004927599,4.79842803,2010.2,2010.0,0.0074625]
[1743004927600,9.37142803,2010.2,2010.0,0.0074625]
[1743004927800,1.3652,2010.1,2010.0,0.0074625]
[1743004928194,8.00622803,2010.2,2010.0,0.0074625]
[1743004928801,9.37142803,2010.2,2010.0,0.0074625]
[1743004929299,1.3652,2010.1,2010.0,0.0074625]
[1743004930096,2.6089,2010.1,2010.0,0.0074625]
[1743004930609,1.2437,2010.1,2010.0,0.0074625]
[1743004931198,1.2437,2010.1,2010.0,3.8738625]
[1743004932008,1.2437,2010.1,2010.0,5.2528625]
[1743004932304,1.2437,2010.1,2010.0,7.7528625]
[1743004932707,0.4467,2010.3,2010.0,10.1228625]
[1743004932909,0.4467,2010.3,2010.1,1.3404]
[1743004933209,0.4467,2010.3,2010.2,3.48]
[1743004933707,0.4467,2010.3,2010.1,1.3404]
[1743004933898,0.4467,2010.3,2010.2,1.3404]
[1743004935707,1.8177,2010.3,2010.2,1.3404]
[1743004938314,2.5137,2010.3,2010.0,3.2152625]
[1743004938515,1.3445,2010.2,2010.1,1.3816]
[1743004939213,3.7033,2010.2,2010.0,0.0074625]
[1743004939817,1.4099,2010.1,2010.0,0.0074625]
[1743004942511,6.20832803,2010.1,2010.0,0.0074625]
[1743004942817,9.67763226,2010.1,2009.2,0.39145213]
[1743004943114,9.67763226,2010.1,2008.1,5.904]
[1743004943115,3.2078,2009.3,2008.4,3.2078]
[1743004943311,6.6720143,2010.0,2008.4,3.2078]
[1743004943312,3.2078,2009.0,2008.5,1.3534]
[1743004943506,1.3951,2008.9,2008.5,1.3534]
[1743004943708,1.4025625,2008.9,2008.5,1.3608625]
[1743004944413,3.2078,2008.7,2008.5,0.0074625]
[1743004944619,1.3951,2008.6,2008.5,0.0074625]
[1743004945315,10.23282803,2008.6,2007.8,3.2078]
[1743004945515,1.8424,2008.6,2008.1,3.2078]
[1743004945709,1.8424,2008.6,2008.2,1.4222]
[1743004946311,0.4473,2008.6,2008.2,1.4222]
[1743004946518,0.4473,2008.6,2008.2,5.0256625]
[1743004946912,0.4473,2008.6,2008.2,1.4296625]
[1743004947106,0.4473,2008.6,2008.4,3.2078]
[1743004947318,0.4473,2008.6,2008.5,2.1166]
[1743004947519,0.4473,2008.6,2008.5,2.7995]
[1743004948224,0.4473,2008.6,2008.5,8.8925]
[1743004948417,3.2152625,2008.9,2008.5,8.8925]
[1743004948418,0.0074625,2008.9,2008.5,10.3725]
[1743004948614,0.0074625,2008.9,2008.7,3.2078]
[1743004948923,0.0074625,2008.9,2008.8,4.9913]
[1743004949818,0.0074625,2008.9,2008.8,5.00248716]
[1743004950536,0.0074625,2008.9,2008.8,5.00480453]
[1743004951240,0.0074625,2008.9,2008.8,5.0071219]
[1743004951433,0.0074625,2008.9,2008.8,9.8571219]
[1743004951633,0.0074625,2008.9,2008.8,9.85943927]
[1743004952538,1.2995,2009.5,2008.8,9.85943927]
[1743004952730,1.2995,2009.5,2009.1,0.01813927]
[1743004953034,7.87422803,2009.7,2009.3,3.2078]
[1743004953236,1.2995,2009.7,2009.4,1.3519]
[1743004953625,4.5073,2009.7,2009.4,1.3519]
[1743004953822,4.5073,2009.7,2009.5,0.01813927]
[1743004954839,4.5073,2009.7,2009.6,0.01813927]
[1743004955232,0.0074625,2009.8,2009.6,0.01813927]
[1743004956045,0.0074625,2009.8,2009.7,0.03527315]
[1743004956540,0.0074625,2009.8,2009.7,0.05240703]
[1743004959438,0.0074625,2009.8,2009.7,0.06953896]
[1743004960840,0.0074625,2009.8,2009.7,3.27733896]
[1743004961039,0.0074625,2009.8,2009.7,3.92803896]
[1743004962244,3.2078,2010.3,2009.7,7.46803896]
[1743004962543,3.2078,2010.3,2010.0,0.08200515]
[1743004962735,3.2078,2010.3,2010.1,4.9293]
[1743004962934,9.18422803,2010.6,2010.2,1.3633]
[1743004963145,4.5178,2010.6,2010.2,1.3633]
[1743004963642,4.5252625,2010.6,2010.4,0.08200515]
[1743004964043,0.6872,2010.5,2010.4,0.08200515]
[1743004964242,2.0958,2010.5,2010.4,0.08200515]
[1743004967146,2.0958,2010.5,2010.4,0.10114472]
[1743004968346,2.0958,2010.5,2010.4,0.12028429]
[1743004974549,8.00769053,2010.6,2010.4,0.12028429]
[1743004974748,8.00769053,2010.6,2010.5,1.2974]
[1743004974943,0.0074625,2010.6,2010.5,1.2974]
[1743004975451,0.0074625,2010.6,2010.5,1.41768429]
[1743004977559,4.79242803,2011.0,2010.5,11.78548429]
[1743004977747,4.79242803,2011.0,2010.5,9.28548429]
[1743004977956,4.5556,2011.3,2010.8,3.2078]
[1743004978149,4.5556,2011.3,2010.9,5.6024]
[1743004978350,4.5556,2011.3,2011.1,0.12028429]
[1743004978549,4.5556,2011.3,2011.2,1.4194]
[1743004979259,4.5556,2011.3,2011.1,0.12028429]
[1743004979554,1.25961571,2011.2,2010.7,1.4194]
[1743004979857,3.2078,2010.9,2010.7,4.9494]
[1743004980046,3.2078,2010.9,2010.7,1.4194]
[1743004980350,1.3602,2010.8,2010.4,50.159]
[1743004980558,1.3602,2010.8,2010.6,1.4194]
[1743004981056,0.7168,2010.7,2010.6,1.4194]
[1743004981452,0.7168,2010.7,2010.4,1.3205]
[1743004981654,3.2078,2010.5,2010.4,1.3205]
[1743004982352,3.2078,2010.5,2010.3,0.0074625]
[1743004982657,1.3335,2010.4,2010.3,0.0074625]
[1743004986064,3.2078,2010.5,2010.3,0.0074625]
[1743004986558,4.5029,2010.5,2010.3,0.0074625]
[1743004989949,4.79642803,2010.6,2010.3,0.6710625]
[1743004990164,6.7168,2010.9,2010.4,1.4208]
[1743004990356,6.7168,2010.9,2010.4,2.0718]
[1743004990558,1.4326,2010.8,2010.4,2.0718]
[1743004990754,3.2078,2010.9,2010.4,2.0718]
[1743004990957,3.2078,2010.9,2010.4,5.5838]
[1743004991155,4.5764,2010.9,2010.4,5.5838]
[1743004991864,8.1014,2010.9,2010.4,2.0718]
[1743004992056,3.2078,2010.6,2010.4,1.4208]
[1743004992253,1.3686,2010.5,2010.4,1.4208]
[1743004992762,3.2078,2010.6,2010.4,1.4208]
[1743004993162,1.3686,2010.5,2010.4,1.4208]
[1743004995564,2.0265,2010.5,2010.3,0.0074625]
[1743004998474,4.79642803,2010.4,2010.3,0.0074625]
[1743004998675,6.95663168,2010.4,2009.3,3.2078]
[1743004998877,3.2078,2009.8,2009.4,2.0916]
[1743004999176,1.2921,2009.7,2009.4,2.754]
[1743004999576,3.2078,2009.5,2009.4,2.754]
[1743004999980,3.2078,2009.5,2008.9,50.157]
[1743005000276,5.503,2009.7,2008.9,50.157]
[1743005000277,3.2078,2009.2,2008.9,50.157]
[1743005000773,3.2078,2009.2,2008.4,3.2078]
[1743005000977,3.2078,2008.8,2008.3,4.2036]
[1743005001277,4.8529,2008.7,2008.6,0.0074625]
[1743005001479,8.0607,2008.7,2008.6,0.0074625]
[1743005002165,3.2078,2008.7,2008.6,0.0074625]
[1743005002370,8.01169053,2009.0,2008.6,0.0074625]
[1743005002569,8.01169053,2009.0,2008.6,1.3446625]
[1743005002772,9.33459053,2009.0,2008.6,1.3446625]
[1743005003072,0.0074625,2009.0,2008.7,3.2078]
[1743005003270,3.2078,2009.3,2008.8,3.543]
[1743005003471,3.2078,2009.3,2008.9,1.3438]
[1743005004073,3.2078,2009.3,2009.0,3.2078]
[1743005004278,3.2078,2009.3,2009.1,1.3438]
[1743005004470,3.2078,2009.3,2009.1,2.041]
[1743005004675,1.3052,2009.2,2009.1,1.3438]
[1743005004877,1.3052,2009.2,2008.8,3.543]
[1743005005380,3.2078,2009.3,2008.8,6.333]
[1743005005682,0.0074625,2009.4,2008.8,3.543]
[1743005005877,3.2078,2009.3,2008.8,3.543]
[1743005006072,0.0074625,2009.4,2008.8,7.693]
[1743005006272,0.0074625,2009.4,2008.8,3.543]
[1743005006578,1.3683625,2009.4,2008.8,3.543]
[1743005006781,1.3683625,2009.4,2009.0,3.2078]
[1743005009185,3.2078,2009.3,2009.0,3.2078]
[1743005009367,1.3262,2009.2,2009.0,3.2078]
[1743005010180,1.3262,2009.2,2009.1,0.01917758]
[1743005011381,1.3262,2009.2,2009.1,0.03002705]
[1743005012077,3.2078,2009.3,2009.1,0.03002705]
[1743005012476,3.2078,2009.3,2008.8,3.2078]
[1743005012477,3.2078,2009.3,2009.2,0.03002705]
[1743005013381,0.0074625,2009.4,2009.2,0.03002705]
[1743005013576,0.0074625,2009.4,2009.2,1.47002705]
[1743005013774,0.0074625,2009.4,2009.3,1.3335]
[1743005013976,1.3396,2009.9,2009.3,1.3335]
[1743005014179,3.9118,2010.3,2009.4,3.2078]
[1743005014387,1.3396,2010.2,2009.7,3.2078]
[1743005014588,3.9118,2010.3,2009.9,0.03002705]
[1743005014786,5.2514,2010.3,2009.9,0.03002705]
[1743005015275,5.2588625,2010.3,2009.9,0.03748955]
[1743005015676,5.2588625,2010.3,2010.1,0.03002705]
[1743005015883,5.2588625,2010.3,2010.2,0.04003776]
[1743005017283,7.7588625,2010.3,2009.7,3.2078]
[1743005017489,3.2078,2010.0,2009.5,3.547]
[1743005017781,1.2939,2009.9,2009.5,3.547]
[1743005018488,1.2939,2009.9,2009.5,3.5544625]
[1743005018885,3.7655,2009.9,2009.5,3.5544625]
[1743005021083,2.4716,2009.9,2009.5,3.5544625]
[1743005021479,2.4716,2009.9,2009.5,4.0144625]
[1743005021777,2.4716,2009.9,2009.5,3.5544625]
[1743005022580,2.4716,2009.9,2009.7,3.2078]
[1743005022880,1.403,2010.1,2009.7,3.2078]
[1743005023185,1.403,2010.1,2009.8,1.4087]
[1743005023387,1.403,2010.1,2009.9,0.6826]
[1743005023588,1.403,2010.1,2010.0,1.4087]
[1743005024384,1.403,2010.1,2009.5,0.0074625]
[1743005024590,3.2078,2009.9,2009.6,1.4235]
[1743005024894,1.4114,2009.8,2009.6,1.4235]
[1743005026289,2.0585,2009.8,2009.6,1.4235]
[1743005027580,1.4114,2009.8,2009.6,1.4235]
[1743005027785,2.8447,2009.9,2009.6,1.4235]
[1743005028683,1.3958,2009.8,2009.6,1.4235]
[1743005029288,1.3958,2009.8,2009.5,0.0074625]
[1743005029494,3.2078,2009.6,2009.5,0.0074625]
[1743005029986,5.2976,2009.6,2009.5,0.0074625]
[1743005031688,5.2976,2009.6,2009.3,1.4326]
[1743005031896,8.8216,2009.6,2009.0,3.2078]
[1743005032097,8.8216,2009.6,2009.1,1.4082]
[1743005032886,8.8216,2009.6,2009.1,1.4156625]
[1743005033698,1.3773,2009.5,2009.1,1.4156625]
[1743005034497,3.2078,2009.2,2009.1,0.0074625]
[1743005036292,3.2078,2009.2,2008.5,1.4191]
[1743005036293,5.7078,2009.2,2008.5,1.4191]
[1743005036495,2.7078,2009.1,2008.7,1.304]
[1743005037095,2.0144,2009.1,2008.7,1.304]
[1743005037296,8.18042803,2009.3,2008.7,4.836]
[1743005037496,0.0074625,2009.1,2008.7,4.8434625]
[1743005037904,0.0074625,2009.1,2008.9,3.2078]
[1743005038095,0.0074625,2009.1,2009.0,2.0085]
[1743005038295,0.0074625,2009.1,2009.0,2.7179]
[1743005040301,3.2152625,2009.1,2009.0,1.304]
[1743005040498,5.2515625,2009.1,2008.8,1.3947]
[1743005040800,1.3187,2009.0,2008.8,1.3947]
[1743005043193,3.2152625,2009.1,2008.8,1.3947]
[1743005043394,3.2152625,2009.1,2008.8,4.9157]
[1743005043797,4.5099625,2009.1,2008.9,1.3309]
[1743005044209,1.2947,2009.0,2008.9,1.3309]
[1743005045703,3.2857,2009.0,2008.9,1.3309]
[1743005047599,1.991,2009.0,2008.9,1.3309]
[1743005047904,2.16923724,2009.2,2008.9,4.5387]
[1743005048106,3.2078,2009.7,2009.0,0.7085]
[1743005048304,2.7206,2009.9,2009.3,3.2078]
[1743005048504,1.3562,2009.9,2009.4,4.8895]
[1743005048706,1.3096,2009.8,2009.5,2.075]
[1743005049010,1.3096,2009.8,2009.6,1.3665]
[1743005052305,3.2078,2009.7,2009.0,3.2078]
[1743005052504,1.2953,2009.6,2009.0,3.9013]
[1743005052707,3.2078,2009.4,2009.1,1.3669]
[1743005053912,1.2953,2009.3,2009.1,1.3669]
[1743005055013,3.2078,2009.4,2009.1,1.3669]
[1743005055311,4.5344,2009.7,2009.1,1.3669]
[1743005055514,1.3266,2009.6,2009.1,1.3669]
[1743005056304,1.3266,2009.6,2009.1,2.0769]
[1743005056706,1.3266,2009.6,2009.2,1.3054]
[1743005057009,3.2078,2009.7,2009.2,4.8234]
[1743005057315,3.2078,2009.7,2009.3,0.6736]
[1743005057511,3.2078,2009.7,2009.3,1.9931]
[1743005057911,3.2078,2009.7,2009.4,1.3195]
[1743005058113,3.2078,2009.7,2009.5,0.6593]
[1743005058412,3.2078,2009.7,2009.6,1.3195]
[1743005058908,3.2078,2009.7,2009.3,0.6736]
[1743005060107,6.7228,2009.7,2009.2,1.3195]
[1743005061705,3.2078,2009.7,2009.2,1.3195]
[1743005062018,3.2078,2009.7,2009.3,7.3753]
[1743005062213,3.2078,2009.7,2009.4,1.3882]
[1743005062819,0.0074625,2009.9,2009.4,1.3882]
[1743005063012,0.0074625,2009.9,2009.6,3.2078]
[1743005063236,0.0074625,2009.9,2009.7,2.1013]
[1743005063413,0.0074625,2009.9,2009.8,1.3882]
[1743005064724,0.0074625,2009.9,2009.3,3.2078]
[1743005065012,3.2078,2009.8,2009.4,4.8884]
[1743005065218,3.2078,2009.8,2009.5,1.3764]
[1743005065219,3.8607,2009.8,2009.5,1.3764]
[1743005065919,0.6529,2009.8,2009.5,1.3764]
[1743005066117,0.6529,2009.8,2009.5,2.0641]
[1743005066325,0.0074625,2009.9,2009.5,2.0641]
[1743005066514,0.0074625,2009.9,2009.6,4.5842]
[1743005066723,0.0074625,2009.9,2009.7,4.9464]
[1743005067020,0.0074625,2009.9,2009.8,1.4304]
[1743005068533,0.0074625,2009.9,2009.6,3.2078]
[1743005068534,0.0074625,2009.9,2009.6,6.7248]
[1743005068710,0.0074625,2009.9,2009.7,1.4304]
[1743005070120,0.0074625,2009.9,2009.8,3.512]
[1743005071417,0.0074625,2009.9,2009.7,1.4304]
[1743005071618,0.0074625,2009.9,2009.4,0.6841]
[1743005071919,3.2078,2009.8,2009.5,1.2936]
[1743005072122,3.9145,2009.8,2009.5,1.2936]
[1743005072425,0.7067,2009.8,2009.5,1.2936]
[1743005072823,1.3023,2009.7,2009.5,1.2936]
[1743005073720,0.6533,2009.8,2009.5,1.2936]
[1743005073927,1.3023,2009.7,2009.5,1.2936]
[1743005076327,1.3023,2009.7,2009.4,0.6841]
[1743005076624,1.3023,2009.7,2009.5,1.4333]
[1743005078829,1.3023,2009.7,2009.3,3.2078]
[1743005079020,1.3023,2009.7,2009.4,1.4078]
[1743005079538,3.2078,2009.5,2008.9,3.2078]
[1743005079734,2.7004,2009.4,2008.9,3.2078]
[1743005080024,3.2078,2009.2,2008.9,1.4078]
[1743005080216,1.3183,2009.1,2008.8,1.4078]
[1743005080627,0.711,2009.0,2008.8,1.4078]
[1743005080818,1.3183,2008.9,2008.8,1.4078]
[1743005085229,3.2078,2009.2,2008.8,1.4078]
[1743005085533,3.2078,2009.2,2008.9,0.6942]
[1743005085534,1.3208,2009.1,2008.9,0.6942]
[1743005085732,1.3208,2009.1,2009.0,1.3739]
[1743005089730,1.3208,2009.1,2008.6,44.0078]
[1743005089934,1.3208,2009.1,2008.7,3.4854625]
[1743005090235,1.3208,2009.1,2008.7,4.8546625]
[1743005090439,1.3208,2009.1,2008.8,1.3692]
[1743005091027,1.3208,2009.1,2008.8,2.061]
[1743005091535,1.3208,2009.1,2008.9,1.3594]
[1743005093628,3.2078,2009.2,2008.9,1.3594]
[1743005093828,4.5112,2009.2,2008.9,1.3594]
[1743005094037,0.6711,2009.4,2009.0,3.471]
[1743005094234,1.3816,2009.3,2009.1,1.3746]
[1743005094639,1.3816,2009.3,2009.1,2.0461]
[1743005095029,1.3816,2009.3,2009.2,1.3746]
[1743005095230,7.86222803,2009.5,2009.2,1.3746]
[1743005095432,1.3816,2009.4,2009.3,0.6912]
[1743005102846,1.3816,2009.4,2009.2,1.3746]
[1743005103640,3.447,2009.3,2008.7,0.0074625]
[1743005103942,3.2078,2009.1,2008.7,0.0074625]
[1743005104147,2.0065,2009.0,2008.7,0.0074625]
[1743005104347,1.3329,2008.9,2008.7,0.0074625]
[1743005105635,1.3329,2008.9,2008.7,1.3150625]
[1743005105955,0.6736,2009.0,2008.7,1.3150625]
[1743005106151,2.0065,2009.0,2008.7,1.3150625]
[1743005106742,1.9909,2009.1,2008.7,3.0850625]
[1743005106949,1.9909,2009.1,2008.8,0.6597]
[1743005107150,1.9909,2009.1,2008.9,0.6568]
[1743005107451,3.4143,2009.1,2009.0,1.3352]
[1743005107643,1.9909,2009.1,2009.0,4.543]
[1743005107842,1.9909,2009.1,2009.0,9.253]
[1743005108147,1.9909,2009.1,2009.0,4.543]
[1743005108382,1.9909,2009.1,2009.0,45.713]
[1743005108549,1.9909,2009.1,2009.0,45.343]
[1743005108751,1.4234,2009.4,2009.0,45.343]
[1743005108939,1.4234,2009.4,2009.1,1.3352]
[1743005109742,1.4234,2009.4,2009.2,0.6484]
[1743005109942,1.4234,2009.4,2009.3,1.3262]
[1743005110144,1.3719,2009.8,2009.3,5.564]
[1743005110345,2.1328,2009.8,2009.4,0.6933]
[1743005110654,2.1328,2009.8,2009.5,1.3262]
[1743005110848,2.072,2009.7,2009.3,3.2078]
[1743005111147,1.4214,2009.6,2009.4,1.3262]
[1743005114847,2.7016,2009.8,2009.5,3.456]
[1743005115052,1.9902,2009.8,2009.6,4.6008]
[1743005115352,1.9940625,2009.9,2009.7,1.393]
[1743005115748,1.3899,2009.8,2009.7,1.393]
[1743005117354,1.3899,2009.8,2009.5,3.451]
[1743005117559,3.2078,2009.6,2009.3,3.2078]
[1743005117852,1.3899,2009.5,2009.2,4.8862]
[1743005118056,1.3899,2009.5,2009.3,1.4302]
[1743005118648,1.9904,2009.6,2009.3,1.4302]
[1743005118851,1.9904,2009.6,2009.5,3.2078]
[1743005119047,1.9904,2009.6,2009.5,11.4788]
[1743005119653,1.9904,2009.6,2009.5,15.2965]
[1743005120260,0.0074625,2009.9,2009.5,65.4725]
[1743005120451,0.0074625,2009.9,2009.8,3.2078]
[1743005120649,0.0074625,2009.9,2009.8,7.5668]
[1743005120847,1.3611,2010.4,2009.8,10.0668]
[1743005121198,1.3611,2010.4,2010.2,3.2078]
[1743005121345,1.3611,2010.4,2010.3,4.7835]
[1743005123286,2.5528,2010.5,2010.3,4.7835]
[1743005123287,1.889,2010.5,2010.3,4.7835]
[1743005123556,1.889,2010.5,2010.4,1.3976]
[1743005123758,1.889,2010.5,2010.4,44.0276]
[1743005123954,1.889,2010.5,2010.4,46.8921574]
[1743005124154,1.889,2010.5,2010.4,47.5766574]
[1743005125059,0.0074625,2010.6,2010.4,47.5766574]
[1743005125362,0.0074625,2010.6,2010.5,53.3698]
[1743005125567,1.3996,2011.2,2010.5,60.9031]
[1743005125755,1.9887,2011.3,2011.1,3.2078]
[1743005125953,1.3123,2011.2,2011.1,3.2078]
[1743005126150,1.9887,2011.3,2011.1,6.6668]
[1743005126355,3.2078,2011.8,2011.1,11.4068]
[1743005126563,0.7144625,2011.7,2011.1,11.4068]
[1743005126767,2.0267625,2011.7,2011.2,0.0074625]
[1743005126968,2.0267625,2011.7,2011.2,4.8774625]
[1743005127266,0.6932,2011.6,2011.2,4.8774625]
[1743005127468,1.3123,2011.5,2011.2,4.8774625]
[1743005127655,0.7144625,2011.7,2011.2,4.8774625]
[1743005127850,1.3392,2011.6,2011.3,0.7018]
[1743005128166,1.3392,2011.6,2011.4,3.461]
[1743005130268,1.3392,2011.6,2011.5,3.455]
[1743005130564,2.0211,2011.6,2011.5,3.455]
[1743005132156,0.7144625,2011.7,2011.5,6.6628]
[1743005132557,0.0074625,2011.7,2011.5,6.6628]
[1743005134155,0.0074625,2011.7,2011.5,8.7528]
[1743005134363,0.0074625,2011.7,2011.6,0.6743]
[1743005134565,0.0074625,2011.7,2011.6,6.29342835]
[1743005134766,0.0074625,2011.7,2011.6,1.06342835]
[1743005135767,0.0074625,2011.7,2011.6,0.6743]
[1743005136969,0.0074625,2011.7,2011.6,0.8543]
[1743005138073,0.0074625,2011.7,2011.6,41.6543]
[1743005141865,0.0074625,2011.7,2011.6,44.1543]
[1743005142673,0.0074625,2011.7,2011.6,41.6543]
[1743005142868,0.0074625,2011.7,2011.6,43.0069]
[1743005143070,1.36,2012.0,2011.6,43.0069]
[1743005143374,0.6652,2012.1,2011.8,3.2078]
[1743005143670,0.6652,2012.1,2011.9,3.438]
[1743005143874,0.6652,2012.1,2011.9,4.7906]
[1743005144077,0.6652,2012.1,2012.0,40.8]
[1743005144376,0.6652,2012.1,2012.0,42.1526]
[1743005144584,0.6652,2012.1,2012.0,47.3526]
[1743005144879,0.6652,2012.1,2012.0,6.5526]
[1743005145904,0.6652,2012.1,2012.0,5.2]
[1743005146272,0.6652,2012.1,2011.8,40.8]
[1743005146477,0.6652,2012.1,2011.9,3.2078]
[1743005146478,1.427,2012.0,2011.9,3.2078]
[1743005148779,1.427,2012.0,2011.9,11.3158]
[1743005149771,1.427,2012.0,2011.9,6.6458]
[1743005151477,1.427,2012.0,2011.9,3.2078]
[1743005152076,1.427,2012.0,2011.9,6.6458]
[1743005152482,1.427,2012.0,2011.9,10.6458]
[1743005152783,0.6528,2012.3,2011.9,10.6458]
[1743005152979,1.3633,2012.2,2011.9,10.6458]
[1743005153983,1.3633,2012.2,2012.0,0.6538]
[1743005154173,1.3656,2012.3,2012.0,1.4638]
[1743005154877,1.3518,2012.2,2012.0,1.4638]
[1743005155273,1.9872,2012.8,2012.0,1.4638]
[1743005155478,2.0105,2012.6,2012.3,3.2078]
[1743005155680,1.3518,2012.5,2012.4,3.438]
[1743005156686,1.3518,2012.5,2012.4,3.81421153]
[1743005159686,1.3518,2012.5,2012.3,3.2078]
[1743005159878,1.3518,2012.5,2012.2,3.4444625]
[1743005160382,1.3518,2012.5,2012.2,3.80990063]
[1743005161193,0.6587,2012.6,2012.2,3.4444625]
[1743005161381,1.4206,2012.5,2012.3,3.2078]
[1743005161780,0.6587,2012.6,2012.3,5.4378]
[1743005161982,0.6587,2012.6,2012.3,6.1514]
[1743005162990,0.6587,2012.6,2012.4,1.377]
[1743005163180,0.6587,2012.6,2012.5,3.437]
[1743005163581,0.6587,2012.6,2012.5,4.814]
[1743005164395,0.6587,2012.6,2012.4,3.437]